[Event "WYCC 2018 G18"]
[Site "Halkidiki"]
[Date "2018.10.20"]
[Round "1"]
[White "Perminaite, Guoda"]
[Black "Arpita, Mukherjee"]
[Result "0-1"]
[ECO "B22"]
[WhiteElo "1840"]
[BlackElo "2147"]
[Annotator "NA"]
[PlyCount "126"]
[EventDate "2018.10.20"]
[EventType "swiss"]
[EventCountry "GRE"]
[SourceTitle "playchess.com"]
[Source "ChessBase"]
[SourceQuality "1"]
[TimeControl "40/5400+30:1800+30"]

1. e4 {[%emt 0:00:00]} c5 {[%emt 0:00:00]} 2. c3 {[%emt 0:00:00]} d5 {[%emt 0:00:01]} 3. exd5 {[%emt 0:00:00]} Qxd5 {[%emt 0:00:05]} 4. d4 {[%emt 0:00:00]} g6 {[%emt 0:00:24]} 5. Nf3 {[%emt 0:04:29]} Bg7 {[%emt 0:00:17]} 6. Be3 {[%emt 0:01:16]} cxd4 {[%emt 0:00:41]} 7. Bxd4 {[%emt 0:06:31]} Nf6 {[%emt 0:03:38]} 8. Nbd2 {[%emt 0:06:36]} Nc6 {[%emt 0:03:08]} 9. Bc4 {[%emt 0:06:34]} Qh5 {[%emt 0:05:57]} 10. Bxf6 {[%emt 0:18:21]} Bxf6 {[%emt 0:00:45]} 11. Ne4 {[%emt 0:05:40]} O-O {[%emt 0:11:19]} 12. Nxf6+ {[%emt 0:04:37]} exf6 {[%emt 0:00:21]} 13. O-O {[%emt 0:05:33]} Bg4 {[%emt 0:00:29]} 14. Be2 {[%emt 0:03:28]} Rad8 {[%emt 0:19:18]} 15. Qc2 {[%emt 0:01:41]} Rfe8 {[%emt 0:10:04]} 16. Rfe1 {[%emt 0:02:59]} Qc5 {[%emt 0:03:37]} 17. Rac1 {[%emt 0:20:25]} Kg7 {[%emt 0:12:32]} 18. b4 {[%emt 0:03:57]} Qb6 {[%emt 0:00:35]} 19. h3 {[%emt 0:00:37]} Bf5 {[%emt 0:01:45]} 20. Qb2 {[%emt 0:02:20]} a5 {[%emt 0:03:47]} 21. a3 {[%emt 0:00:05]} Ne5 {[%emt 0:04:25]} 22. Nxe5 {[%emt 0:01:09]} fxe5 {[%emt 0:00:14]} 23. c4 {[%emt 0:00:47]} Qd4 {[%emt 0:02:01]} 24. Qc3 {[%emt 0:01:42]} axb4 {[%emt 0:01:05]} 25. axb4 {[%emt 0:00:45]} Qxc3 {[%emt 0:06:25]} 26. Rxc3 {[%emt 0:00:02]} Rd4 {[%emt 0:00:15]} 27. b5 {[%emt 0:00:55]} Rc8 {[%emt 0:00:50]} 28. c5 {[%emt 0:00:50]} Be4 {[%emt 0:00:15]} 29. Rec1 {[%emt 0:01:22]} Rd2 {[%emt 0:00:06]} 30. Bf3 {[%emt 0:00:41]} Bxf3 {[%emt 0:01:02]} 31. gxf3 {[%emt 0:00:19]} Rb2 {[%emt 0:00:36]} 32. b6 {[%emt 0:01:10]} Kf6 {[%emt 0:02:20]} 33. Kg2 {[%emt 0:00:45]} Ke6 {[%emt 0:00:56]} 34. Kg3 {[%emt 0:00:24]} Rb4 {[%emt 0:00:46]} 35. R1c2 {[%emt 0:00:50]} Kd5 {[%emt 0:00:21]} 36. Rd2+ {[%emt 0:00:28]} Rd4 {[%emt 0:00:03]} 37. Rdc2 {[%emt 0:00:10]} Kc6 {[%emt 0:00:40]} 38. Re3 {[%emt 0:00:17]} Rd5 {[%emt 0:00:12]} 39. Rec3 {[%emt 0:00:26]} Ra8 {[%emt 0:00:05]} 40. f4 {[%emt 0:00:00]} exf4+ {[%emt 0:00:00]} 41. Kxf4 {[%emt 0:01:06]} Ra5 {[%emt 0:01:58]} 42. Re2 {[%emt 0:06:43]} Raxc5 {[%emt 0:00:24]} 43. Rxc5+ {[%emt 0:00:14]} Rxc5 {[%emt 0:00:13]} 44. Re7 {[%emt 0:00:19]} Rf5+ {[%emt 0:00:07]} 45. Kg3 {[%emt 0:00:38]} Kxb6 {[%emt 0:00:06]} 46. f4 {[%emt 0:00:58]} Kc6 {[%emt 0:00:09]} 47. h4 {[%emt 0:03:05]} h5 {[%emt 0:00:19]} 48. Kf3 {[%emt 0:00:07]} b5 {[%emt 0:01:16]} 49. Re4 {[%emt 0:00:55]} Rd5 {[%emt 0:00:47]} 50. Re8 {[%emt 0:01:20]} b4 {[%emt 0:00:31]} 51. Rc8+ {[%emt 0:02:01]} Kb5 {[%emt 0:01:34]} 52. Ke4 {[%emt 0:00:17]} Rd7 {[%emt 0:00:21]} 53. Rb8+ {[%emt 0:00:18]} Kc4 {[%emt 0:00:08]} 54. Rc8+ {[%emt 0:00:09]} Kb3 {[%emt 0:00:13]} 55. Rb8 {[%emt 0:00:21]} Kc3 {[%emt 0:00:09]} 56. Rc8+ {[%emt 0:00:15]} Kb2 {[%emt 0:00:04]} 57. Rb8 {[%emt 0:00:33]} b3 {[%emt 0:00:06]} 58. f5 {[%emt 0:00:25]} gxf5+ {[%emt 0:01:17]} 59. Kxf5 {[%emt 0:00:07]} Kc2 {[%emt 0:00:14]} 60. Rc8+ {[%emt 0:00:24]} Kb1 {[%emt 0:00:08]} 61. Rb8 {[%emt 0:00:26]} b2 {[%emt 0:00:03]} 62. Kf6 {[%emt 0:00:11]} Rc7 {[%emt 0:00:24]} 63. Kg5 {[%emt 0:00:19]} Rc5+ {[%emt 0:00:04]} 0-1

[Event "WYCC 2018 G18"]
[Site "Halkidiki"]
[Date "2018.10.20"]
[Round "1"]
[White "Hunt, Fikirte"]
[Black "Tejaswini, Sagar"]
[Result "0-1"]
[ECO "A15"]
[WhiteElo "1827"]
[BlackElo "2139"]
[Annotator "NA"]
[PlyCount "88"]
[EventDate "2018.10.20"]
[EventType "swiss"]
[EventCountry "GRE"]
[SourceTitle "playchess.com"]
[Source "ChessBase"]
[SourceQuality "1"]
[TimeControl "40/5400+30:1800+30"]

1. c4 {[%emt 0:00:00]} Nf6 {[%emt 0:00:00]} 2. Nf3 {[%emt 0:00:00]} g6 {[%emt 0:00:00]} 3. g3 {[%emt 0:00:04]} Bg7 {[%emt 0:00:00]} 4. Bg2 {[%emt 0:00:16]} O-O {[%emt 0:00:36]} 5. O-O {[%emt 0:00:26]} d5 {[%emt 0:05:59]} 6. cxd5 {[%emt 0:07:19]} Nxd5 {[%emt 0:00:05]} 7. e4 {[%emt 0:02:39]} Nb6 {[%emt 0:00:21]} 8. d4 {[%emt 0:03:58]} Bg4 {[%emt 0:00:42]} 9. d5 c6 {[%emt 0:02:22]} 10. h3 {[%emt 0:15:31]} Bc8 {[%emt 0:05:15]} 11. Nh2 {[%emt 0:04:28]} e6 {[%emt 0:08:36]} 12. dxc6 {[%emt 0:14:52]} Nxc6 {[%emt 0:00:43]} 13. Nc3 {[%emt 0:01:24]} Qe7 {[%emt 0:02:42]} 14. f4 {[%emt 0:14:08]} Qc5+ {[%emt 0:08:29]} 15. Kh1 {[%emt 0:00:47]} Rd8 {[%emt 0:15:14]} 16. Qe1 {[%emt 0:03:16]} Nd4 {[%emt 0:18:43]} 17. Qf2 {[%emt 0:03:05]} Nc4 {[%emt 0:07:57]} 18. e5 {[%emt 0:02:28]} Qb6 {[%emt 0:04:02]} 19. b3 {[%emt 0:04:31]} Na5 {[%emt 0:05:06]} 20. Be3 {[%emt 0:00:39]} Qb4 {[%emt 0:00:38]} 21. Rad1 {[%emt 0:03:04]} Ndc6 {[%emt 0:03:09]} 22. Ne4 {[%emt 0:00:53]} Bf8 {[%emt 0:00:59]} 23. Nd6 {[%emt 0:01:18]} Bxd6 {[%emt 0:02:20]} 24. exd6 {[%emt 0:00:11]} Bd7 {[%emt 0:00:49]} 25. Ng4 {[%emt 0:00:44]} Qc3 {[%emt 0:00:53]} 26. Rc1 {[%emt 0:02:53]} Qg7 {[%emt 0:02:04]} 27. b4 {[%emt 0:01:43]} h5 {[%emt 0:00:15]} 28. Ne5 {[%emt 0:05:17]} Nxb4 {[%emt 0:02:18]} 29. Rc7 {[%emt 0:01:58]} f6 {[%emt 0:00:13]} 30. Nxd7 {[%emt 0:02:12]} Rxd7 {[%emt 0:00:10]} 31. Bxa7 {[%emt 0:01:03]} Rxc7 {[%emt 0:01:25]} 32. dxc7 {[%emt 0:00:10]} Qxc7 {[%emt 0:00:11]} 33. Bb6 {[%emt 0:00:25]} Qd7 {[%emt 0:00:38]} 34. Bxa5 {[%emt 0:01:09]} Rxa5 {[%emt 0:00:02]} 35. Qb2 {[%emt 0:01:05]} Nd5 {[%emt 0:00:29]} 36. Rc1 {[%emt 0:01:19]} Kf7 {[%emt 0:02:28]} 37. Kh2 {[%emt 0:01:07]} Rb5 {[%emt 0:00:44]} 38. Qe2 {[%emt 0:00:27]} Ra5 {[%emt 0:01:02]} 39. Qb2 {[%emt 0:00:20]} Rb5 {[%emt 0:00:08]} 40. Qe2 {[%emt 0:00:00]} Ra5 {[%emt 0:00:00]} 41. Qc4 {[%emt 0:02:19]} Ra4 {[%emt 0:06:46]} 42. Qe2 {[%emt 0:01:53]} h4 {[%emt 0:03:46]} 43. Be4 {[%emt 0:07:11]} hxg3+ {[%emt 0:00:38]} 44. Kxg3 {[%emt 0:00:30]} Ra3+ 0-1

[Event "WYCC 2018 G18"]
[Site "Halkidiki"]
[Date "2018.10.20"]
[Round "1"]
[White "Cibikova, Sofia Anna"]
[Black "Janiashvili, Mariami"]
[Result "1/2-1/2"]
[ECO "B06"]
[WhiteElo "1809"]
[BlackElo "2081"]
[Annotator "NA"]
[PlyCount "61"]
[EventDate "2018.10.20"]
[EventType "swiss"]
[EventCountry "GRE"]
[SourceTitle "playchess.com"]
[Source "ChessBase"]
[SourceQuality "1"]
[TimeControl "40/5400+30:1800+30"]

1. e4 {[%emt 0:00:00]} g6 {[%emt 0:00:00]} 2. d4 Bg7 3. Nf3 {[%emt 0:03:38]} d6 {[%emt 0:00:40]} 4. Bd3 {[%emt 0:04:33]} Nd7 {[%emt 0:04:29]} 5. O-O {[%emt 0:05:13]} e5 {[%emt 0:12:43]} 6. c3 {[%emt 0:04:17]} Ne7 {[%emt 0:00:28]} 7. Na3 {[%emt 0:12:30]} O-O {[%emt 0:03:26]} 8. Be3 {[%emt 0:08:04]} h6 {[%emt 0:18:11]} 9. Nd2 {[%emt 0:05:28]} Nf6 {[%emt 0:03:44]} 10. f3 {[%emt 0:03:56]} Nh5 {[%emt 0:05:26]} 11. Ndc4 {[%emt 0:05:38]} c6 {[%emt 0:06:11]} 12. dxe5 {[%emt 0:03:41]} dxe5 {[%emt 0:00:43]} 13. Bc2 {[%emt 0:01:24]} Be6 {[%emt 0:06:06]} 14. Bb3 {[%emt 0:04:48]} Qc7 {[%emt 0:08:02]} 15. Qd6 {[%emt 0:06:18]} Qxd6 {[%emt 0:02:09]} 16. Nxd6 {[%emt 0:00:10]} Bxb3 {[%emt 0:04:08]} 17. axb3 {[%emt 0:00:06]} b6 {[%emt 0:00:19]} 18. Nc2 {[%emt 0:05:58]} Nf4 {[%emt 0:07:12]} 19. Rfd1 {[%emt 0:05:31]} Rfd8 {[%emt 0:02:48]} 20. g3 {[%emt 0:02:06]} Ne6 {[%emt 0:04:43]} 21. Kf2 {[%emt 0:04:08]} f5 {[%emt 0:06:36]} 22. Ke2 {[%emt 0:03:48]} Nf8 {[%emt 0:02:02]} 23. Nc4 {[%emt 0:02:08]} Rxd1 {[%emt 0:00:14]} 24. Kxd1 {[%emt 0:00:17]} Rd8+ {[%emt 0:00:10]} 25. Ke2 {[%emt 0:00:09]} Rd7 {[%emt 0:00:06]} 26. Nb4 {[%emt 0:02:45]} c5 {[%emt 0:01:47]} 27. Nd3 {[%emt 0:00:33]} Nc6 {[%emt 0:00:04]} 28. Ra6 {[%emt 0:01:27]} Kf7 {[%emt 0:00:40]} 29. Nxc5 {[%emt 0:01:25]} Rc7 {[%emt 0:00:50]} 30. Nd3 {[%emt 0:01:19]} Rd7 {[%emt 0:00:29]} 31. b4 {[%emt 0:02:24]} 1/2-1/2

[Event "WYCC 2018 G18"]
[Site "Halkidiki"]
[Date "2018.10.20"]
[Round "1"]
[White "Mocanu, Valeria"]
[Black "Vanduyfhuys, Daria"]
[Result "0-1"]
[ECO "B30"]
[WhiteElo "1800"]
[BlackElo "2058"]
[Annotator "NA"]
[PlyCount "84"]
[EventDate "2018.10.20"]
[EventType "swiss"]
[EventCountry "GRE"]
[SourceTitle "playchess.com"]
[Source "ChessBase"]
[SourceQuality "1"]
[TimeControl "40/5400+30:1800+30"]

1. e4 {[%emt 0:00:00]} c5 {[%emt 0:00:00]} 2. Nf3 {[%emt 0:00:00]} Nc6 {[%emt 0:00:00]} 3. Bb5 {[%emt 0:00:00]} Qb6 {[%emt 0:00:03]} 4. Nc3 {[%emt 0:01:09]} e6 {[%emt 0:00:15]} 5. Bxc6 {[%emt 0:11:00]} Qxc6 {[%emt 0:00:14]} 6. O-O {[%emt 0:08:02]} Nf6 {[%emt 0:11:19]} 7. e5 {[%emt 0:03:24]} Nd5 {[%emt 0:00:12]} 8. Ne4 {[%emt 0:03:07]} Be7 {[%emt 0:02:16]} 9. Re1 {[%emt 0:05:40]} O-O {[%emt 0:07:53]} 10. c4 {[%emt 0:18:56]} Nb4 {[%emt 0:01:44]} 11. Qb3 {[%emt 0:02:02]} b5 {[%emt 0:22:21]} 12. d3 {[%emt 0:05:23]} a5 {[%emt 0:18:38]} 13. a3 {[%emt 0:11:42]} a4 {[%emt 0:00:09]} 14. Qc3 {[%emt 0:00:07]} Na6 {[%emt 0:00:12]} 15. cxb5 {[%emt 0:04:17]} Qxb5 {[%emt 0:00:09]} 16. Nfd2 {[%emt 0:03:18]} Nc7 {[%emt 0:07:46]} 17. Nc4 {[%emt 0:01:02]} Nd5 {[%emt 0:00:19]} 18. Qc2 {[%emt 0:00:24]} Ba6 {[%emt 0:01:49]} 19. Bd2 {[%emt 0:03:18]} Rab8 {[%emt 0:02:48]} 20. Rab1 {[%emt 0:13:25]} f6 {[%emt 0:08:07]} 21. exf6 {[%emt 0:02:18]} Nxf6 {[%emt 0:00:59]} 22. Nxf6+ {[%emt 0:00:07]} Bxf6 {[%emt 0:00:17]} 23. Bc3 {[%emt 0:00:11]} Qb3 {[%emt 0:01:41]} 24. Qxb3 {[%emt 0:00:42]} Rxb3 {[%emt 0:00:14]} 25. Rec1 {[%emt 0:02:18]} Rfb8 {[%emt 0:01:28]} 26. Nd2 {[%emt 0:00:22]} R3b6 {[%emt 0:02:46]} 27. Bxf6 {[%emt 0:00:37]} gxf6 {[%emt 0:00:03]} 28. Rxc5 {[%emt 0:00:31]} Rxb2 {[%emt 0:00:28]} 29. Rd1 {[%emt 0:00:29]} Bxd3 {[%emt 0:01:19]} 30. Nf3 {[%emt 0:00:26]} Rb1 {[%emt 0:00:24]} 31. Rcc1 {[%emt 0:00:32]} Rxc1 {[%emt 0:00:34]} 32. Rxc1 {[%emt 0:00:05]} Rb3 {[%emt 0:00:50]} 33. Ne1 {[%emt 0:00:42]} Rxa3 {[%emt 0:01:03]} 34. f3 {[%emt 0:00:47]} d5 {[%emt 0:01:06]} 35. Rd1 {[%emt 0:00:26]} Bc4 {[%emt 0:00:18]} 36. Nc2 {[%emt 0:00:33]} Rd3 {[%emt 0:00:53]} 37. Ra1 {[%emt 0:00:31]} Bb3 {[%emt 0:00:07]} 38. Nb4 {[%emt 0:00:29]} Rd4 {[%emt 0:00:57]} 39. Nc6 {[%emt 0:00:17]} Rd1+ {[%emt 0:00:12]} 40. Rxd1 {[%emt 0:00:00]} Bxd1 {[%emt 0:00:00]} 41. Kf2 {[%emt 0:00:23]} a3 {[%emt 0:00:14]} 42. Nb4 {[%emt 0:00:07]} Bb3 {[%emt 0:00:10]} 0-1

[Event "WYCC 2018 G18"]
[Site "Halkidiki"]
[Date "2018.10.20"]
[Round "1"]
[White "Perry, Tal"]
[Black "Avetisyan, Mariam"]
[Result "0-1"]
[ECO "C50"]
[WhiteElo "1702"]
[BlackElo "2049"]
[Annotator "NA"]
[PlyCount "108"]
[EventDate "2018.10.20"]
[EventType "swiss"]
[EventCountry "GRE"]
[SourceTitle "playchess.com"]
[Source "ChessBase"]
[SourceQuality "1"]
[TimeControl "40/5400+30:1800+30"]

1. e4 {[%emt 0:00:00]} e5 {[%emt 0:00:00]} 2. Nf3 {[%emt 0:00:00]} Nc6 {[%emt 0:00:00]} 3. Bc4 {[%emt 0:00:00]} Bc5 {[%emt 0:00:00]} 4. d3 {[%emt 0:00:00]} Nf6 {[%emt 0:00:00]} 5. c3 {[%emt 0:00:00]} d6 {[%emt 0:00:00]} 6. b4 {[%emt 0:00:03]} Bb6 {[%emt 0:00:02]} 7. a4 {[%emt 0:00:09]} a5 {[%emt 0:00:04]} 8. b5 {[%emt 0:00:06]} Ne7 {[%emt 0:00:06]} 9. O-O {[%emt 0:00:27]} O-O {[%emt 0:01:00]} 10. Bg5 {[%emt 0:00:15]} Ng6 {[%emt 0:00:05]} 11. Nh4 {[%emt 0:00:20] C54: Giuoco Piano: 4 c3 Nf6, main lines with 5 d4 and 5 d3} (11. Nbd2 h6 12. Be3 c6 13. Ba2 d5 14. Bxb6 Qxb6 15. exd5 cxd5 16. Re1 Re8 17. c4 e4 18. d4 exf3 19. Rxe8+ Nxe8 {0-1 (36) Polgar,J (2705)-Carlsen,M (2848) Mexico City 2012}) 11... Kh8 {[%emt 0:00:14]} 12. Qf3 {[%emt 0:05:16]} h6 {[%emt 0:16:38]} 13. Bxf6 {[%emt 0:01:23]} Qxf6 $146 {[%emt 0:07:05]} ({Predecessor:} 13... Nxh4 14. Bxd8 Nxf3+ 15. gxf3 Rxd8 16. Kg2 f5 17. Bd5 Ra7 18. Nd2 Bd7 {½-½ (68) Djurhuus,R (2305)-Wahls,M (2460) Arnhem 1988}) 14. Qxf6 {[%emt 0:03:28]} gxf6 {[%emt 0:00:04]} 15. Nxg6+ {[%emt 0:02:36]} fxg6 {[%emt 0:00:05]} 16. Nd2 {[%emt 0:00:12]} Bd7 {[%emt 0:07:47]} 17. Kh1 {[%emt 0:03:26]} f5 {[%emt 0:05:11]} 18. Rab1 {[%emt 0:06:23]} Rab8 {[%emt 0:07:45]} 19. f3 {[%emt 0:03:51]} Be3 {[%emt 0:12:57]} 20. Rfd1 {[%emt 0:11:35]} g5 {[%emt 0:09:23]} 21. Nf1 {[%emt 0:02:15]} Bb6 {[%emt 0:03:33]} 22. d4 {[%emt 0:20:46]} exd4 {[%emt 0:02:25]} 23. cxd4 {[%emt 0:00:10]} fxe4 {[%emt 0:00:33]} 24. fxe4 {[%emt 0:00:16]} Rf4 {[%emt 0:05:44]} 25. Ng3 {[%emt 0:01:37]} Bg4 {[%emt 0:01:01]} 26. Rd2 {[%emt 0:00:34]} h5 {[%emt 0:03:40]} 27. Bd5 {[%emt 0:14:16]} h4 {[%emt 0:05:45]} 28. Nf1 {[%emt 0:03:27]} Rbf8 {[%emt 0:00:06]} 29. Ne3 {[%emt 0:04:40]} h3 {[%emt 0:07:31]} 30. Kg1 {[%emt 0:05:34]} hxg2 {[%emt 0:00:28]} 31. Nxg2 {[%emt 0:00:23]} Rf3 {[%emt 0:02:06]} 32. Bxb7 {[%emt 0:05:41]} Ra3 {[%emt 0:00:20]} 33. Rf1 {[%emt 0:01:47]} Rxf1+ {[%emt 0:01:01]} 34. Kxf1 {[%emt 0:00:01]} Rxa4 {[%emt 0:00:34]} 35. Ne3 {[%emt 0:03:52]} Bh3+ {[%emt 0:00:18]} 36. Kf2 {[%emt 0:00:40]} Rxd4 {[%emt 0:01:21]} 37. Rxd4 {[%emt 0:00:37]} Bxd4 {[%emt 0:00:04]} 38. Kf3 {[%emt 0:01:53]} a4 {[%emt 0:01:48]} 39. Nc2 {[%emt 0:00:17]} Be5 {[%emt 0:00:04]} 40. Ne3 {[%emt 0:00:00]} Bxh2 {[%emt 0:00:00]} 41. Bd5 {[%emt 0:02:55]} Bf4 {[%emt 0:05:45]} 42. Nc2 $19 {[%emt 0:29:15]} Be5 {[%emt 0:03:20]} 43. Ne3 {[%emt 0:00:15]} Bd4 {[%emt 0:02:31]} 44. Nf5 {[%emt 0:00:44]} Be5 {[%emt 0:04:51]} 45. Ne3 {[%emt 0:00:01]} Bd7 {[%emt 0:02:09]} 46. Bc4 {[%emt 0:00:12]} a3 {[%emt 0:00:44]} 47. Nc2 {[%emt 0:01:19]} Bb2 {[%emt 0:00:29]} 48. Kg3 {[%emt 0:00:30]} Kg7 {[%emt 0:00:14]} 49. Nb4 {[%emt 0:00:23]} Be8 {[%emt 0:03:17]} 50. Kg4 {[%emt 0:00:21]} Bc1 {[%emt 0:01:08]} 51. Nc6 {[%emt 0:00:47]} Bf7 {[%emt 0:01:21]} 52. Bxf7 {[%emt 0:00:26]} Kxf7 {[%emt 0:00:06]} 53. Nb4 {[%emt 0:00:05]} Bd2 {[%emt 0:01:27]} 54. Na2 {[%emt 0:00:58]} Ke6 {[%emt 0:00:12]} 0-1

[Event "WYCC 2018 G18"]
[Site "Halkidiki"]
[Date "2018.10.20"]
[Round "1"]
[White "Salas Estrada, Ana Paola"]
[Black "Tarini Goyal"]
[Result "0-1"]
[ECO "B10"]
[WhiteElo "1665"]
[BlackElo "2026"]
[Annotator "NA"]
[PlyCount "44"]
[EventDate "2018.10.20"]
[EventType "swiss"]
[EventCountry "GRE"]
[SourceTitle "playchess.com"]
[Source "ChessBase"]
[SourceQuality "1"]
[TimeControl "40/5400+30:1800+30"]

1. e4 {[%emt 0:00:00]} c6 {[%emt 0:00:00]} 2. d3 {[%emt 0:00:00]} d5 {[%emt 0:00:00]} 3. Nd2 {[%emt 0:00:00]} e5 {[%emt 0:00:00]} 4. Ngf3 {[%emt 0:00:10]} Bd6 {[%emt 0:00:22]} 5. d4 {[%emt 0:01:27]} exd4 {[%emt 0:02:20]} 6. exd5 {[%emt 0:00:27]} Nf6 {[%emt 0:06:08]} 7. dxc6 {[%emt 0:06:43]} Nxc6 {[%emt 0:00:12]} 8. Bb5 {[%emt 0:01:22]} O-O {[%emt 0:00:45]} 9. O-O {[%emt 0:01:13]} a6 $11 {[%emt 0:08:00]} 10. Bxc6 {[%emt 0:12:31]} bxc6 {[%emt 0:00:08]} 11. Nc4 {[%emt 0:00:22]} c5 {[%emt 0:01:11]} 12. c3 {[%emt 0:07:47]} d3 {[%emt 0:01:30]} 13. Kh1 {[%emt 0:09:06]} Bc7 {[%emt 0:11:05]} 14. Bg5 {[%emt 0:14:23]} Bb7 {[%emt 0:00:38]} 15. Ne1 {[%emt 0:07:34]} Qd5 {[%emt 0:06:54]} 16. Bxf6 {[%emt 0:04:50]} Qxc4 {[%emt 0:00:21]} 17. Bg5 {[%emt 0:02:22]} h6 {[%emt 0:15:51]} 18. Be3 {[%emt 0:03:11]} Rad8 {[%emt 0:07:42]} 19. Nf3 {[%emt 0:04:33]} Qd5 {[%emt 0:02:47]} 20. Qd2 {[%emt 0:04:48]} Qd6 {[%emt 0:01:35]} 21. Kg1 {[%emt 0:09:57]} Bxf3 {[%emt 0:00:28]} 22. g3 {[%emt 0:00:42]} Qe6 {[%emt 0:00:30]} 0-1

[Event "WYCC 2018 G18"]
[Site "Halkidiki"]
[Date "2018.10.20"]
[Round "1"]
[White "Rakic, Tijana"]
[Black "Greibrokk, Ingrid"]
[Result "0-1"]
[ECO "B72"]
[WhiteElo "1651"]
[BlackElo "2018"]
[Annotator "NA"]
[PlyCount "130"]
[EventDate "2018.10.20"]
[EventType "swiss"]
[EventCountry "GRE"]
[SourceTitle "playchess.com"]
[Source "ChessBase"]
[SourceQuality "1"]
[TimeControl "40/5400+30:1800+30"]

1. e4 {[%emt 0:00:00]} c5 {[%emt 0:00:12]} 2. Nf3 {[%emt 0:00:17]} d6 {[%emt 0:00:03]} 3. d4 {[%emt 0:00:23]} cxd4 {[%emt 0:00:04]} 4. Nxd4 {[%emt 0:00:14]} Nf6 {[%emt 0:00:02]} 5. Nc3 {[%emt 0:00:10]} g6 {[%emt 0:00:04]} 6. Be3 {[%emt 0:00:13]} Bg7 {[%emt 0:00:03]} 7. Bc4 {[%emt 0:00:10]} Ng4 {[%emt 0:04:46]} 8. Qd2 {[%emt 0:14:27]} Nxe3 {[%emt 0:00:30]} 9. Qxe3 {[%emt 0:00:40]} O-O {[%emt 0:05:45]} 10. O-O {[%emt 0:04:18]} Nc6 {[%emt 0:05:12]} 11. Nf3 {[%emt 0:09:21]} Bd7 {[%emt 0:02:41]} 12. Bb3 $146 {[%emt 0:05:58] B35: Sicilian: Accelerated Dragon with 5 Nc3: main line} ({Predecessor:} 12. Rad1 Rc8 13. Bb3 Bg4 14. Rd2 Bxf3 15. Qxf3 Ne5 16. Qe3 a6 17. Rfd1 Nc4 18. Bxc4 Rxc4 19. e5 Qa5 20. exd6 exd6 21. Rxd6 Bxc3 22. bxc3 Rxc3 23. Qe7 Rcc8 {0-1 (23) Hurlot,R (1499)-Courtois,B (1790) Montigny le Bretonneux 2004}) 12... Na5 {[%emt 0:01:42]} 13. Rfd1 {[%emt 0:05:18]} Bg4 {[%emt 0:17:18]} 14. Rd3 {[%emt 0:10:59]} Nxb3 {[%emt 0:06:30]} 15. axb3 {[%emt 0:01:10]} a6 {[%emt 0:00:35]} 16. Qg5 {[%emt 0:02:47]} Bxf3 {[%emt 0:01:55]} 17. Rxf3 {[%emt 0:00:48]} e6 {[%emt 0:13:49]} 18. Qd2 {[%emt 0:02:00]} Qc7 {[%emt 0:10:49]} 19. Rd1 {[%emt 0:03:24]} Rfd8 {[%emt 0:02:23]} 20. Rd3 {[%emt 0:06:23]} Rac8 {[%emt 0:01:43]} 21. Rxd6 {[%emt 0:02:50]} Rxd6 22. Qxd6 Qxd6 23. Rxd6 Bxc3 24. bxc3 Rxc3 25. Rd2 Kf8 {[%emt 0:03:37]} 26. Kf1 {[%emt 0:01:17]} Ke7 {[%emt 0:00:08]} 27. Ke1 {[%emt 0:04:15]} b5 {[%emt 0:00:51]} 28. Kd1 {[%emt 0:01:59]} Rc6 {[%emt 0:08:02]} 29. Rd3 {[%emt 0:03:05]} Rd6 {[%emt 0:03:44]} 30. Ke2 {[%emt 0:02:38]} a5 {[%emt 0:07:05]} 31. Rc3 {[%emt 0:03:27]} Kd7 {[%emt 0:04:45]} 32. Rc5 {[%emt 0:02:42]} Rb6 {[%emt 0:00:24]} 33. e5 {[%emt 0:00:16]} a4 {[%emt 0:01:07]} 34. bxa4 bxa4 {[%emt 0:00:01]} 35. Ra5 {[%emt 0:01:37]} Rb4 {[%emt 0:00:37]} 36. Kd3 {[%emt 0:02:22]} Kc6 {[%emt 0:00:37]} 37. c4 {[%emt 0:01:06]} Kb6 {[%emt 0:00:39]} 38. Ra8 {[%emt 0:00:08]} Kb7 {[%emt 0:00:25]} 39. Ra5 {[%emt 0:01:09]} Kb6 {[%emt 0:00:54]} 40. Ra8 {[%emt 0:00:00]} Kb7 {[%emt 0:00:00]} 41. Ra5 {[%emt 0:02:07]} Rb2 {[%emt 0:07:50]} 42. Ke3 {[%emt 0:08:13]} Ra2 {[%emt 0:03:15]} 43. g3 {[%emt 0:10:07]} Kb6 {[%emt 0:01:02]} 44. Ra8 Kc5 45. Rc8+ Kb4 {[%emt 0:00:18]} 46. c5 {[%emt 0:00:34]} Rc2 47. c6 Kb3 {[%emt 0:11:49]} 48. c7 {[%emt 0:04:21]} Ka3 {[%emt 0:00:09]} 49. Kf3 {[%emt 0:03:28]} h6 {[%emt 0:00:15]} 50. Kg4 {[%emt 0:00:30]} Rc4+ {[%emt 0:01:35]} 51. f4 {[%emt 0:00:40]} Rc3 {[%emt 0:06:13]} 52. h4 {[%emt 0:03:03]} Rc4 {[%emt 0:00:03]} 53. h5 {[%emt 0:02:34]} Rc3 {[%emt 0:02:22]} 54. Kh4 {[%emt 0:01:49]} Rc1 {[%emt 0:01:42]} 55. g4 {[%emt 0:00:40]} gxh5 {[%emt 0:00:56]} 56. f5 {[%emt 0:08:01]} hxg4 {[%emt 0:00:23]} 57. Kxg4 {[%emt 0:00:12]} Rc4+ {[%emt 0:00:39]} 58. Kh5 {[%emt 0:00:21]} exf5 {[%emt 0:00:09]} 59. Kxh6 f4 60. Kg7 f3 61. e6 fxe6 62. Rf8 Rxc7+ 63. Kg6 Rc3 64. Kf6 Kb2 65. Kxe6 {[%emt 0:05:15]} a3 0-1